fUSD/lending_fUSD_20240409
["ID","MTS","AMOUNT","RATE_DAILY","PERIOD"]
[321971519,1712662232492,-488.56,0.0001951,2]
[321971520,1712662232502,-1000.0,0.0001951,2]
[321971521,1712662232511,-2751.0,0.0001953,2]
[321971522,1712662232520,-2485.32,0.00019553,2]
[321971524,1712662232530,-571.09,0.00019567,2]
[321971526,1712662232539,-492.19,0.00019578,2]
[321971528,1712662232549,-348.66,0.00019962,2]
[321971530,1712662232558,-4467.38661181,0.0002,2]
[321971534,1712662232592,-2771.76,0.0002,2]
[321971537,1712662232603,-1502.51721331,0.0002,2]
[321971539,1712662232615,-2058.49568798,0.0002,2]
[321971620,1712662238551,-447.4015177,0.0002,2]
[321971629,1712662238655,-45376.86082269,0.0002,2]
[321971630,1712662238664,-207.92,0.00020015,2]
[321971631,1712662238675,-625.0,0.00020485,2]
[321971632,1712662238685,-625.0,0.00020485,2]
[321971633,1712662238695,-1000.0,0.00020487,2]
[321971634,1712662238705,-2500.0,0.00020487,2]
[321971635,1712662238715,-9327.64979758,0.000205,2]
[321971636,1712662238724,-150.0,0.000205,2]
[321971637,1712662238735,-1000.0,0.000205,5]
[321971638,1712662238746,-527.0,0.00020547,2]
[321971639,1712662238756,-605.69,0.00020548,2]
[321971640,1712662238766,-321.51134969,0.00020585,2]
[321971641,1712662238778,-267.62437084,0.00020585,2]
[321971642,1712662238788,-355.17490237,0.00020585,2]
[321971643,1712662238797,-200.32668376,0.00020585,2]
[321971644,1712662238807,-254.88752267,0.00020585,2]
[321971645,1712662238817,-155.36755483,0.00020586,2]
[321971646,1712662238827,-14570.57846451,0.00020587,2]
[321971647,1712662238844,-1821.32749805,0.00020587,2]
[321971648,1712662238856,-70889.00000001,0.00020587,2]
[321971649,1712662238903,-73.17156135,0.00020587,2]
[321971650,1712662238914,-34484.60836839,0.00020587,2]
[321971651,1712662238979,-1373.17539636,0.00020587,2]
[321971652,1712662238992,-9123.50521133,0.00020587,2]
[321971653,1712662239001,-1683.48872181,0.000206,2]
[321971654,1712662239011,-156.98426855,0.000207,2]
[321971655,1712662239020,-6915.3292,0.0002072,2]
[321971656,1712662239029,-318.82676,0.0002079,2]
[321971657,1712662239038,-179.24,0.0002079,2]
[321971658,1712662239048,-9327.64979754,0.00020799,2]
[321971659,1712662239057,-150.3668968,0.00020799,2]
[321971660,1712662239067,-3704.0,0.000208,2]
[321971661,1712662239076,-12387.175837,0.000208,2]
[321971662,1712662239086,-18580.763756,0.000208,2]
[321971663,1712662239095,-8362.66955096,0.000208,2]
[321971664,1712662239106,-16411.68212404,0.000208,2]
[321971665,1712662239115,-19990.54840496,0.000208,2]
[321971667,1712662242523,-524.69208336,0.000208,2]
[321971668,1712662242536,-324.46750774,0.000208,2]
[321971669,1712662242548,-3453.01922088,0.000208,2]
[321971670,1712662242608,-2034.03667186,0.000208,2]
[321971671,1712662242620,-4641.1757042,0.000208,2]
[321971672,1712662242630,-21309.62654774,0.000208,2]
[321971673,1712662242641,-11044.89693948,0.000208,2]
[321971674,1712662242724,-1914.41247,0.000208,2]
[321971684,1712662243081,-9086.17947378,0.000208,2]
[321971686,1712662243092,-182.68075876,0.00020819,2]
[321971688,1712662243102,-155.0,0.00020819,2]
[321971690,1712662243111,-280.25086343,0.00020819,2]
[321971691,1712662243120,-3597.00970826,0.00020819,2]
[321971692,1712662243130,-4395.89511818,0.00020819,2]
[321971693,1712662243139,-2994.02422326,0.00020819,2]
[321971694,1712662243148,-1240.13796248,0.00020819,2]
[321971695,1712662243158,-3372.97633265,0.0002082,2]
[321971696,1712662243167,-2097.62450049,0.0002082,4]
[321971697,1712662243176,-136905.15708213,0.0002082,2]
[321971698,1712662243186,-239229.78423296,0.00020821,2]
[321971699,1712662243195,-500.0,0.00020821,2]
[321971700,1712662243205,-539.99,0.00020821,2]
[321971701,1712662243214,-500.0,0.00020821,2]
[321971702,1712662243223,-500.0,0.00020821,2]
[321971703,1712662243233,-848.26,0.00020821,2]
[321971704,1712662243242,-500.0,0.00020821,2]
[321971705,1712662243252,-500.0,0.00020821,2]
[321971706,1712662243261,-614.08,0.00020821,2]
[321971707,1712662243271,-500.0,0.00020821,2]
[321971708,1712662243281,-500.0,0.00020821,2]
[321971709,1712662243292,-500.0,0.00020821,2]
[321971710,1712662243301,-500.0,0.00020821,2]
[321971711,1712662243310,-500.0,0.00020821,2]
[321971712,1712662243320,-500.0,0.00020821,2]
[321971713,1712662243330,-500.0,0.00020821,2]
[321971714,1712662243340,-500.0,0.00020821,2]
[321971715,1712662243349,-530.76,0.00020821,2]
[321971716,1712662243359,-500.0,0.00020821,2]
[321971717,1712662243369,-500.0,0.00020821,2]
[321971718,1712662243378,-500.0,0.00020821,2]
[321971719,1712662243387,-500.0,0.00020821,2]
[321971720,1712662243397,-500.0,0.00020821,2]
[321971721,1712662243406,-500.0,0.00020821,2]
[321971722,1712662243415,-500.0,0.00020821,2]
[321971723,1712662243424,-815.32,0.00020821,2]
[321971724,1712662243433,-500.0,0.00020821,2]
[321971725,1712662243442,-577.99,0.00020821,2]
[321971726,1712662243452,-500.0,0.00020821,2]
[321971727,1712662243461,-514.68,0.00020821,2]
[321971728,1712662243471,-500.0,0.00020821,2]
[321971729,1712662243482,-500.0,0.00020821,2]
[321971730,1712662243492,-1469.04,0.00020821,2]
[321971731,1712662243502,-668.53,0.00020821,2]
[321971732,1712662243511,-500.0,0.00020821,2]
[321971733,1712662243521,-500.0,0.00020821,2]
[321971734,1712662243531,-500.0,0.00020821,2]
[321971735,1712662243540,-500.0,0.00020821,2]
[321971736,1712662243550,-575.85,0.00020821,2]
[321971737,1712662243561,-1088.43,0.00020821,2]
[321971738,1712662243570,-500.0,0.00020821,2]
[321971739,1712662243580,-500.0,0.00020821,2]
[321971740,1712662243591,-500.0,0.00020821,2]
[321971741,1712662243600,-500.0,0.00020821,2]
[321971742,1712662243610,-500.0,0.00020821,2]
[321971743,1712662243620,-500.0,0.00020821,2]
[321971744,1712662243629,-558.35,0.00020821,2]
[321971745,1712662243638,-500.0,0.00020821,2]
[321971746,1712662243647,-500.0,0.00020821,2]
[321971747,1712662243656,-500.0,0.00020821,2]
[321971748,1712662243665,-500.0,0.00020821,2]
[321971749,1712662243674,-989.34,0.00020821,2]
[321971750,1712662243684,-321.29246516,0.00020821,2]
[321971751,1712662243693,-500.0,0.00020821,2]
[321971752,1712662243702,-662.34,0.00020821,2]
[321971753,1712662243711,-500.0,0.00020821,2]
[321971754,1712662243720,-534.42638966,0.00020821,2]
[321971755,1712662243731,-500.0,0.00020821,2]
[321971756,1712662243740,-500.0,0.00020821,2]
[321971757,1712662243750,-500.0,0.00020821,2]
[321971758,1712662243761,-500.0,0.00020821,2]
[321971759,1712662243770,-749.07,0.00020821,2]
[321971760,1712662243780,-500.0,0.00020821,2]
[321971761,1712662243789,-500.0,0.00020821,2]
[321971762,1712662243799,-500.0,0.00020821,2]
[321971763,1712662243808,-701.36,0.00020821,2]
[321971764,1712662243817,-500.0,0.00020821,2]
[321971765,1712662243826,-500.0,0.00020821,2]
[321971766,1712662243835,-500.0,0.00020821,2]
[321971767,1712662243845,-174.61224665,0.00020821,2]
[321971768,1712662243854,-500.0,0.00020821,2]
[321971769,1712662243864,-500.0,0.00020821,2]
[321971770,1712662243873,-500.0,0.00020821,2]
[321971771,1712662243882,-500.0,0.00020821,2]
[321971772,1712662243891,-500.0,0.00020821,2]
[321971773,1712662243900,-500.0,0.00020821,2]
[321971774,1712662243909,-500.0,0.00020821,2]
[321971775,1712662243919,-705.87,0.00020821,2]
[321971776,1712662243927,-572.82304004,0.00020821,2]
[321971777,1712662243937,-500.0,0.00020821,2]
[321971778,1712662243947,-544.38,0.00020821,2]
[321971779,1712662243956,-500.0,0.00020821,2]
[321971780,1712662243965,-500.0,0.00020821,2]
[321971781,1712662243974,-500.0,0.00020821,2]
[321971782,1712662243984,-417.84239327,0.00020821,2]
[321971783,1712662243993,-500.0,0.00020821,2]
[321971784,1712662244002,-634.7,0.00020821,2]
[321971785,1712662244011,-575.13478371,0.00020821,2]
[321971786,1712662244020,-500.0,0.00020821,2]
[321971787,1712662244029,-500.0,0.00020821,2]
[321971788,1712662244038,-505.12540249,0.00020821,2]
[321971789,1712662244047,-500.0,0.00020821,2]
[321971790,1712662244056,-500.0,0.00020821,2]
[321971791,1712662244065,-500.0,0.00020821,2]
[321971792,1712662244075,-643.33,0.00020821,2]
[321971793,1712662244085,-500.0,0.00020821,2]
[321971794,1712662244094,-500.0,0.00020821,2]
[321971795,1712662244103,-500.0,0.00020821,2]
[321971796,1712662244112,-585.47,0.00020821,2]
[321971797,1712662244122,-500.0,0.00020821,2]
[321971798,1712662244131,-531.11196054,0.00020821,2]
[321971799,1712662244140,-734.56,0.00020821,2]
[321971800,1712662244149,-500.0,0.00020821,2]
[321971801,1712662244158,-500.0,0.00020821,2]
[321971802,1712662244167,-500.0,0.00020821,2]
[321971803,1712662244176,-500.0,0.00020821,2]
[321971804,1712662244185,-500.0,0.00020821,2]
[321971805,1712662244194,-574.88,0.00020821,2]
[321971806,1712662244204,-545.45,0.00020821,2]
[321971807,1712662244214,-500.0,0.00020821,2]
[321971808,1712662244225,-500.0,0.00020821,2]
[321971809,1712662244235,-500.0,0.00020821,2]
[321971810,1712662244246,-500.0,0.00020821,2]
[321971811,1712662244257,-500.0,0.00020821,2]
[321971812,1712662244267,-500.0,0.00020821,2]
[321971813,1712662244281,-500.0,0.00020821,2]
[321971814,1712662244290,-500.0,0.00020821,2]
[321971815,1712662244299,-500.0,0.00020821,2]
[321971816,1712662244310,-500.0,0.00020821,2]
[321971817,1712662244319,-500.0,0.00020821,2]
[321971818,1712662244329,-980.93,0.00020821,2]
[321971819,1712662244339,-150.0,0.00020821,2]
[321971820,1712662244349,-300.0,0.00020821,2]
[321971821,1712662244358,-500.0,0.00020821,2]
[321971822,1712662244367,-500.0,0.00020821,2]
[321971823,1712662244377,-500.0,0.00020821,2]
[321971824,1712662244387,-500.0,0.00020821,2]
[321971825,1712662244397,-500.0,0.00020821,2]
[321971826,1712662244406,-500.0,0.00020821,2]
[321971827,1712662244415,-500.0,0.00020821,2]
[321971828,1712662244424,-500.0,0.00020821,2]
[321971829,1712662244434,-722.63,0.00020821,2]
[321971830,1712662244445,-500.0,0.00020821,2]
[321971831,1712662244455,-192.16185736,0.00020821,2]
[321971832,1712662244464,-500.0,0.00020821,2]
[321971833,1712662244474,-500.0,0.00020821,2]
[321971834,1712662244483,-500.0,0.00020821,2]
[321971835,1712662244493,-500.0,0.00020821,2]
[321971836,1712662244503,-500.0,0.00020821,2]
[321971837,1712662244512,-500.0,0.00020821,2]
[321971838,1712662244521,-500.0,0.00020821,2]
[321971839,1712662244530,-630.23,0.00020821,2]
[321971840,1712662244540,-500.0,0.00020821,2]
[321971841,1712662244549,-500.0,0.00020821,2]
[321971842,1712662244557,-505.67,0.00020821,2]
[321971843,1712662244566,-500.0,0.00020821,2]
[321971844,1712662244576,-500.0,0.00020821,2]
[321971845,1712662244587,-500.0,0.00020821,2]
[321971846,1712662244596,-534.84,0.00020821,2]
[321971847,1712662244605,-500.0,0.00020821,2]
[321971848,1712662244614,-500.0,0.00020821,2]
[321971849,1712662244623,-500.0,0.00020821,2]
[321971850,1712662244632,-500.0,0.00020821,2]
[321971851,1712662244641,-1190.02,0.00020821,2]
[321971852,1712662244651,-500.0,0.00020821,2]
[321971853,1712662244660,-500.0,0.00020821,2]
[321971854,1712662244669,-595.93,0.00020821,2]
[321971855,1712662244678,-500.0,0.00020821,2]
[321971856,1712662244687,-638.2,0.00020821,2]
[321971857,1712662244696,-777.93,0.00020821,2]
[321971858,1712662244705,-500.0,0.00020821,2]
[321971859,1712662244715,-644.74,0.00020821,2]
[321971860,1712662244724,-1550.03,0.00020821,2]
[321971861,1712662244732,-500.0,0.00020821,2]
[321971862,1712662244741,-500.0,0.00020821,2]
[321971863,1712662244750,-500.0,0.00020821,2]
[321971864,1712662244759,-1658.49,0.00020821,2]
[321971865,1712662244768,-500.0,0.00020821,2]
[321971866,1712662244777,-500.0,0.00020821,2]
[321971867,1712662244786,-543.18,0.00020821,2]
[321971868,1712662244796,-500.0,0.00020821,2]
[321971869,1712662244805,-500.0,0.00020821,2]
[321971870,1712662244814,-500.0,0.00020821,2]
[321971871,1712662244823,-889.09,0.00020821,2]
[321971872,1712662244832,-500.0,0.00020821,2]
[321971873,1712662244842,-1126.7,0.00020821,2]
[321971874,1712662244851,-500.0,0.00020821,2]
[321971875,1712662244860,-500.0,0.00020821,2]
[321971876,1712662244869,-500.0,0.00020821,2]
[321971877,1712662244878,-944.12,0.00020821,2]
[321971878,1712662244887,-1629.26,0.00020821,2]
[321971879,1712662244897,-500.0,0.00020821,2]
[321971880,1712662244906,-1453.97,0.00020821,2]
[321971881,1712662244915,-1248.21,0.00020821,2]
[321971882,1712662244924,-500.0,0.00020821,2]
[321971883,1712662244933,-346.81286831,0.00020821,2]
[321971884,1712662244942,-500.0,0.00020821,2]
[321971885,1712662244951,-500.0,0.00020821,2]
[321971886,1712662244960,-1013.04,0.00020821,2]
[321971887,1712662244969,-500.0,0.00020821,2]
[321971888,1712662244978,-1151.65,0.00020821,2]
[321971889,1712662244988,-823.54,0.00020821,2]
[321971890,1712662244997,-594.56001193,0.00020821,2]
[321971891,1712662245006,-1714.36,0.00020821,2]
[321971892,1712662245015,-500.0,0.00020821,2]
[321971893,1712662245024,-500.0,0.00020821,2]
[321971894,1712662245034,-500.0,0.00020821,2]
[321971895,1712662245043,-860.75,0.00020821,2]
[321971896,1712662245052,-392.66630547,0.00020821,2]
[321971897,1712662245061,-500.0,0.00020821,2]
[321971898,1712662245071,-500.0,0.00020821,2]
[321971899,1712662245080,-500.0,0.00020821,2]
[321971900,1712662245090,-500.0,0.00020821,2]
[321971901,1712662245355,-500.0,0.00020821,2]
[321971902,1712662245374,-500.0,0.00020821,2]
[321971903,1712662245383,-532.43214008,0.00020821,2]
[321971904,1712662245393,-500.0,0.00020821,2]
[321971905,1712662245403,-500.0,0.00020821,2]
[321971906,1712662245412,-500.0,0.00020821,2]
[321971907,1712662245421,-500.0,0.00020821,2]
[321971908,1712662245430,-679.13,0.00020821,2]
[321971909,1712662245439,-864.94,0.00020821,2]
[321971910,1712662245448,-1325.21,0.00020821,2]
[321971911,1712662245458,-500.0,0.00020821,2]
[321971912,1712662245468,-500.0,0.00020821,2]
[321971913,1712662245477,-500.0,0.00020821,2]
[321971914,1712662245486,-1486.09,0.00020821,2]
[321971915,1712662245495,-500.0,0.00020821,2]
[321971916,1712662245503,-1904.43,0.00020821,2]
[321971917,1712662245513,-500.0,0.00020821,2]
[321971918,1712662245522,-682.41,0.00020821,2]
[321971919,1712662245531,-500.0,0.00020821,2]
[321971920,1712662245540,-500.0,0.00020821,2]
[321971921,1712662245549,-500.0,0.00020821,2]
[321971922,1712662245558,-500.0,0.00020821,2]
[321971923,1712662245567,-203.38474943,0.00020821,2]
[321971924,1712662245576,-500.0,0.00020821,2]
[321971925,1712662245586,-500.0,0.00020821,2]
[321971926,1712662245595,-1043.85,0.00020821,2]
[321971927,1712662245604,-500.0,0.00020821,2]
[321971928,1712662245614,-500.0,0.00020821,2]
[321971929,1712662245623,-500.0,0.00020821,2]
[321971930,1712662245632,-500.0,0.00020821,2]
[321971931,1712662245641,-832.88,0.00020821,2]
[321971932,1712662245651,-500.0,0.00020821,2]
[321971933,1712662245660,-500.0,0.00020821,2]
[321971934,1712662245669,-500.0,0.00020821,2]
[321971935,1712662245678,-500.0,0.00020821,2]
[321971936,1712662245687,-1510.12,0.00020821,2]
[321971937,1712662245697,-500.0,0.00020821,2]
[321971938,1712662245706,-1044.91,0.00020821,2]
[321971939,1712662245715,-1237.34,0.00020821,2]
[321971940,1712662245724,-500.0,0.00020821,2]
[321971941,1712662245734,-500.0,0.00020821,2]
[321971942,1712662245743,-500.0,0.00020821,2]
[321971943,1712662245752,-1161.9,0.00020821,2]
[321971944,1712662245762,-710.41,0.00020821,2]
[321971945,1712662245771,-500.0,0.00020821,2]
[321971946,1712662245780,-500.0,0.00020821,2]
[321971947,1712662245789,-588.38,0.00020821,2]
[321971948,1712662245799,-1440.52,0.00020821,2]
[321971949,1712662245808,-500.0,0.00020821,2]
[321971950,1712662245818,-500.0,0.00020821,2]
[321971952,1712662245827,-500.0,0.00020821,2]
[321971955,1712662245837,-1358.35,0.00020821,2]
[321971957,1712662245846,-1027.4,0.00020821,2]
[321971958,1712662245855,-500.0,0.00020821,2]
[321971959,1712662245865,-500.0,0.00020821,2]
[321971960,1712662245874,-500.0,0.00020821,2]
[321971961,1712662245883,-500.0,0.00020821,2]
[321971962,1712662245893,-500.0,0.00020821,2]
[321971963,1712662245903,-500.0,0.00020821,2]
[321971964,1712662245912,-1100.66,0.00020821,2]
[321971965,1712662245921,-1210.07,0.00020821,2]
[321971966,1712662245930,-547.62,0.00020821,2]
[321971967,1712662245940,-500.0,0.00020821,2]
[321971968,1712662245949,-1404.9,0.00020821,2]
[321971969,1712662245958,-500.0,0.00020821,2]
[321971970,1712662245968,-644.82751925,0.00020821,2]
[321971972,1712662245977,-607.3,0.00020821,2]
[321971974,1712662245987,-1094.29,0.00020821,2]
[321971976,1712662245996,-500.0,0.00020821,2]
[321971978,1712662246006,-500.0,0.00020821,2]
[321971979,1712662246015,-637.95,0.00020821,2]
[321971980,1712662246024,-500.0,0.00020821,2]
[321971981,1712662246034,-500.0,0.00020821,2]
[321971982,1712662246043,-1579.81,0.00020821,2]
[321971983,1712662246052,-1873.16,0.00020821,2]
[321971984,1712662246062,-500.0,0.00020821,2]
[321971985,1712662246071,-500.0,0.00020821,2]
[321971986,1712662246081,-500.0,0.00020821,2]
[321971987,1712662246092,-883.86,0.00020821,2]
[321971988,1712662246101,-500.0,0.00020821,2]
[321971989,1712662246110,-500.0,0.00020821,2]
[321971990,1712662246120,-1019.69,0.00020821,2]
[321971991,1712662246129,-542.36,0.00020821,2]
[321971992,1712662246139,-516.15423723,0.00020821,2]
[321971993,1712662246148,-923.41,0.00020821,2]
[321971994,1712662246157,-1827.93,0.00020821,2]
[321971995,1712662246166,-500.0,0.00020821,2]
[321971996,1712662246175,-500.0,0.00020821,2]
[321971997,1712662246184,-500.0,0.00020821,2]
[321971998,1712662246193,-500.0,0.00020821,2]
[321971999,1712662246202,-500.0,0.00020821,2]
[321972000,1712662246212,-500.0,0.00020821,2]
[321972001,1712662246221,-1785.89,0.00020821,2]
[321972002,1712662246230,-500.0,0.00020821,2]
[321972003,1712662246240,-694.5,0.00020821,2]
[321972004,1712662246249,-577.79,0.00020821,2]
[321972005,1712662246258,-1197.42,0.00020821,2]
[321972006,1712662246267,-500.0,0.00020821,2]
[321972007,1712662246277,-500.0,0.00020821,2]
[321972008,1712662246289,-500.0,0.00020821,2]
[321972009,1712662246299,-823.43,0.00020821,2]
[321972010,1712662246308,-519.93,0.00020821,2]
[321972011,1712662246317,-500.0,0.00020821,2]
[321972012,1712662246326,-799.5,0.00020821,2]
[321972013,1712662246336,-500.0,0.00020821,2]
[321972014,1712662246347,-500.0,0.00020821,2]
[321972015,1712662246358,-500.0,0.00020821,2]
[321972016,1712662246367,-500.0,0.00020821,2]
[321972017,1712662246376,-500.0,0.00020821,2]
[321972018,1712662246385,-500.0,0.00020821,2]
[321972019,1712662246394,-1259.23,0.00020821,2]
[321972020,1712662246403,-579.6,0.00020821,2]
[321972021,1712662246413,-500.0,0.00020821,2]
[321972022,1712662246422,-500.0,0.00020821,2]
[321972023,1712662246431,-500.0,0.00020821,2]
[321972024,1712662246441,-500.0,0.00020821,2]
[321972025,1712662246450,-500.0,0.00020821,2]
[321972026,1712662246459,-500.0,0.00020821,2]
[321972027,1712662246468,-500.0,0.00020821,2]
[321972028,1712662246477,-500.0,0.00020821,2]
[321972029,1712662246487,-739.58,0.00020821,2]
[321972030,1712662246496,-500.0,0.00020821,2]
[321972031,1712662246506,-500.0,0.00020821,2]
[321972032,1712662246516,-500.0,0.00020821,2]
[321972033,1712662246525,-725.64,0.00020821,2]
[321972034,1712662246535,-500.0,0.00020821,2]
[321972035,1712662246544,-500.0,0.00020821,2]
[321972036,1712662246554,-500.0,0.00020821,2]
[321972037,1712662246563,-500.0,0.00020821,2]
[321972038,1712662246572,-874.42,0.00020821,2]
[321972039,1712662246582,-500.0,0.00020821,2]
[321972040,1712662246592,-529.54966152,0.00020821,2]
[321972041,1712662246601,-500.0,0.00020821,2]
[321972042,1712662246610,-333.02504107,0.00020821,2]
[321972043,1712662246620,-500.0,0.00020821,2]
[321972044,1712662246629,-1019.56,0.00020821,2]
[321972045,1712662246638,-500.0,0.00020821,2]
[321972046,1712662246647,-500.0,0.00020821,2]
[321972047,1712662246657,-502.2421322,0.00020821,2]
[321972048,1712662246666,-500.0,0.00020821,2]
[321972049,1712662246675,-500.0,0.00020821,2]
[321972050,1712662246685,-500.0,0.00020821,2]
[321972051,1712662246694,-500.0,0.00020821,2]
[321972052,1712662246703,-613.55,0.00020821,2]
[321972053,1712662246712,-500.0,0.00020821,2]
[321972054,1712662246721,-500.79309117,0.00020821,2]
[321972055,1712662246731,-1444.48,0.00020821,2]
[321972056,1712662246740,-1211.16,0.00020821,2]
[321972057,1712662246749,-500.0,0.00020821,2]
[321972058,1712662246758,-1398.59,0.00020821,2]
[321972059,1712662246768,-519.24499784,0.00020821,2]
[321972060,1712662246777,-743.11,0.00020821,2]
[321972061,1712662246786,-607.05066119,0.00020821,2]
[321972062,1712662246796,-500.0,0.00020821,2]
[321972063,1712662246823,-585.05749568,0.00020821,2]
[321972064,1712662246832,-500.0,0.00020821,2]
[321972065,1712662246845,-500.0,0.00020821,2]
[321972066,1712662246854,-500.0,0.00020821,2]
[321972067,1712662246863,-563.74,0.00020821,2]
[321972068,1712662246873,-1186.8,0.00020821,2]
[321972069,1712662246884,-500.0,0.00020821,2]
[321972070,1712662246894,-637.17,0.00020821,2]
[321972071,1712662246903,-1676.57,0.00020821,2]
[321972072,1712662246912,-945.63,0.00020821,2]
[321972073,1712662246922,-500.0,0.00020821,2]
[321972074,1712662246932,-582.56291782,0.00020821,2]
[321972075,1712662246941,-500.0,0.00020821,2]
[321972076,1712662246950,-1117.69,0.00020821,2]
[321972077,1712662246959,-1506.98,0.00020821,2]
[321972078,1712662246969,-500.0,0.00020821,2]
[321972079,1712662246979,-2191.92,0.00020821,2]
[321972080,1712662246988,-114.68537497,0.00020821,2]
[321972086,1712662247645,-897.09462503,0.00020821,2]
[321972087,1712662247654,-0.69514025,0.00020821,2]
[321972088,1712662247676,-499.30485975,0.00020821,2]
[321972089,1712662247685,-168.42865616,0.00020821,2]
[321972090,1712662247696,-284.83040661,0.00020821,2]
[321972091,1712662247707,-46.74093723,0.00020821,2]
[321972092,1712662247716,-246.56427593,0.00020821,2]
[321972093,1712662247728,-253.43572407,0.00020821,2]
[321972094,1712662247737,-138.8591797,0.00020821,2]
[321972095,1712662247757,-49.37879514,0.00020821,2]
[321972096,1712662247766,-832.95,0.00020821,2]
[321972097,1712662247774,-544.17120486,0.00020821,2]
[321972098,1712662247786,-486.2908,0.00020821,2]
[321972099,1712662247816,-1081.40799514,0.00020821,2]
[321972100,1712662247825,-500.0,0.00020821,2]
[321972101,1712662247835,-1498.32,0.00020821,2]
[321972102,1712662247847,-500.0,0.00020821,2]
[321972103,1712662247856,-500.0,0.00020821,2]
[321972104,1712662247866,-500.0,0.00020821,2]
[321972105,1712662247874,-1119.35,0.00020821,2]
[321972106,1712662247883,-500.0,0.00020821,2]
[321972107,1712662247892,-1264.74,0.00020821,2]
[321972108,1712662247902,-799.21,0.00020821,2]
[321972109,1712662247911,-518.28939918,0.00020821,2]
[321972110,1712662247921,-882.12,0.00020821,2]
[321972111,1712662247930,-500.0,0.00020821,2]
[321972112,1712662247938,-500.0,0.00020821,2]
[321972113,1712662247947,-500.0,0.00020821,2]
[321972114,1712662247957,-500.0,0.00020821,2]
[321972115,1712662247967,-500.0,0.00020821,2]
[321972116,1712662247976,-597.03,0.00020821,2]
[321972117,1712662247985,-1180.9,0.00020821,2]
[321972118,1712662247995,-500.0,0.00020821,2]
[321972119,1712662248004,-1632.5,0.00020821,2]
[321972120,1712662248014,-500.0,0.00020821,2]
[321972121,1712662248023,-500.0,0.00020821,2]
[321972122,1712662248032,-500.0,0.00020821,2]
[321972123,1712662248041,-500.0,0.00020821,2]
[321972124,1712662248050,-500.0,0.00020821,2]
[321972125,1712662248060,-3585.96,0.00020821,2]
[321972126,1712662248069,-500.0,0.00020821,2]
[321972127,1712662248078,-1154.45,0.00020821,2]
[321972128,1712662248087,-500.0,0.00020821,2]
[321972129,1712662248099,-500.0,0.00020821,2]
[321972130,1712662248108,-500.0,0.00020821,2]
[321972131,1712662248117,-500.0,0.00020821,2]
[321972132,1712662248126,-500.0,0.00020821,2]
[321972133,1712662248135,-1169.92,0.00020821,2]
[321972134,1712662248144,-500.0,0.00020821,2]
[321972135,1712662248153,-577.01,0.00020821,2]
[321972136,1712662248162,-500.0,0.00020821,2]
[321972137,1712662248172,-500.0,0.00020821,2]
[321972138,1712662248181,-500.0,0.00020821,2]
[321972139,1712662248190,-500.0,0.00020821,2]
[321972140,1712662248199,-500.0,0.00020821,2]
[321972141,1712662248208,-745.14,0.00020821,2]
[321972142,1712662248217,-514.21,0.00020821,2]